Cogmind - Beta 10.2 @@@ ROGUE MODE // 2020.10.29 @ 19:12:12 // Halloween2020/ForbiddenLore Player: sentrybuster Result: Destroyed by as-79800 with Assembled Maul Performance ------------- Evolutions (0) 0 Regions Visited (4) 800 Robots Destroyed (18) 90 Value Destroyed (297) 297 Prototype IDs (23) 460 Alien Tech Used (0) 0 Bonus (300) 300 TOTAL SCORE: 1947 Bonus ------- Aligned with FarCom 300 Cogmind --------- Core Integrity 0/250 Matter 300/300 Energy 125/125 System Corruption 0% Temperature Cool (0) Movement Core (250) Ox4 Location -9/Mines Parts ------- > --- POWER (1) -------- Light Ion Engine > --- PROPULSION (2) --- (None) > --- UTILITY (2) ------ Medium Storage Unit Supersonic Drone Bay (1/1) > --- WEAPON (2) ------- Shotgun > --- INVENTORY (8) ---- Light Fission Core Light Fission Core Aluminum Leg Aluminum Leg Experimental Sensor Array Signal Interpreter Weapon Shielding Maul Peak State ------------ > --- POWER ------------ Light Ion Engine > --- PROPULSION ------- Compact Wheel > --- UTILITY ---------- Medium Storage Unit Supersonic Drone Bay > --- WEAPON ----------- Shotgun > --- INVENTORY -------- Light Fission Core Light Fission Core Aluminum Leg Aluminum Leg Experimental Sensor Array Signal Interpreter Weapon Shielding Maul [Rating: 15] Favorites ----------- Power Light Ion Engine Engine Light Ion Engine Propulsion Compact Wheel Wheel Compact Wheel Utility Medium Storage Unit Device Improved Heat Sink Storage Medium Storage Unit Protection Weapon Shielding Weapon Beam Cannon Energy Gun Small Laser Energy Cannon Beam Cannon Ballistic Gun Shotgun Impact Weapon Maul Build | -11 -10 -10 -10 -9 ------- Run | Scr Mat Min Exi Min Slots Evolved . | . . . . . Power . | . . . . . Propulsion . | . . . . . Utility . | . . . . . Weapon . | . . . . . Parts Attached 22 | 6 10 5 . 1 Power 2 | 1 . 1 . . Engine 2 | 1 . 1 . . Core . | . . . . . Reactor . | . . . . . Propulsion 3 | 2 1 . . . Treads . | . . . . . Leg . | . . . . . Wheel 3 | 2 1 . . . Hover . | . . . . . Flight . | . . . . . Utility 7 | 1 4 1 . 1 Device 4 | . 3 . . 1 Storage 2 | 1 1 . . . Processor . | . . . . . Hackware . | . . . . . Protection 1 | . . 1 . . Artifact . | . . . . . Weapon 10 | 2 5 3 . . Energy Gun 1 | 1 . . . . Energy Cannon 4 | . 4 . . . Ballistic Gun 4 | 1 1 2 . . Ballistic Cannon . | . . . . . Launcher . | . . . . . Special Weapon . | . . . . . Impact Weapon 1 | . . 1 . . Slashing Weapon . | . . . . . Piercing Weapon . | . . . . . Special Melee Weapon . | . . . . . Unidentified Prototypes . | . . . . . Parts Lost 9 | . 3 4 . 2 Power 1 | . . 1 . . Propulsion 2 | . . . . 2 Utility 2 | . 1 1 . . Weapon 4 | . 2 2 . . Highest Loss Streak 2 | . 2 2 . 2 Average Slot Usage (%) 90 | . 95 91 85 71 Engine 13 | . 14 12 14 14 Wheel 27 | . 28 28 28 14 Device 6 | . 10 8 . 4 Storage 14 | . 14 14 14 14 Protection 4 | . . 2 14 9 Energy Cannon 11 | . 17 12 . . Ballistic Gun 8 | . 8 5 14 14 Impact Weapon 2 | . . 6 . . Naked Turns . | . . . . . Heaviest Build 18 | 10 18 18 15 15 Greatest Support 26 | 26 26 26 26 16 Greatest Overweight (x) 4 | . . . . 4 Average Overweight (x) . | . . . . . Largest Inventory Capacity 8 | 6 8 8 8 8 Average Capacity 7 | 5 6 8 8 8 Most Carried 8 | 4 8 8 8 8 Average Carried 5 | 1 4 6 7 8 Final Capacity 8 | 6 8 8 8 8 Final Carried 8 | 4 8 5 8 8 Class Distribution -------------------- 100% | Mutant Dominant Class ---------------- Mutant | -10/Materials Mutant | -10/Mines Mutant | -10/Exiles Mutant | -9/Mines Resources | -11 -10 -10 -10 -9 ----------- Run | Scr Mat Min Exi Min Matter Collected 514 | 196 224 77 . 17 Remotely . | . . . . . Salvage Created 613 | . 370 198 . 45 Parts 26 | . 14 3 . 9 Haulers Intercepted . | . . . . . Recyclers Shooed 1 | . 1 . . . Parts Field Recycled . | . . . . . Retrieved Matter . | . . . . . Parts Self-Destructed . | . . . . . Prevented . | . . . . . Kills | -11 -10 -10 -10 -9 ------- Run | Scr Mat Min Exi Min Combat Hostiles Destroyed 12 | . 4 5 . 3 Melee 1 | . . 1 . . Guns 5 | . 1 1 . 3 Cannons 6 | . 3 3 . . Classes Destroyed 7 | . 3 3 . 1 Worker 2 | . . 2 . . Tunneler 1 | . . 1 . . Recycler 2 | . 2 . . . Watcher 1 | . 1 . . . Swarmer 3 | . . . . 3 Grunt 6 | . 4 2 . . Assembled 3 | . . 3 . . Best Kill Streak 3 | . 3 3 . 3 Combat Bots Only 3 | . 2 2 . 3 Max Kills in Single Turn 1 | . 1 1 . 1 Gunslinging . | . . . . . Exploded . | . . . . . Melee 1 | . . 1 . . Uniques/NPCs Destroyed . | . . . . . Combat | -11 -10 -10 -10 -9 -------- Run | Scr Mat Min Exi Min Damage Taken 992 | . 452 273 . 267 Core 281 | . 64 129 . 88 Absorbed by Shields . | . . . . . Core Remaining (%) 100 | 100 . . . . Volleys Fired 48 | . 33 12 . 3 Largest 2 | . 2 2 . 1 Hottest 120 | . 120 83 . 23 Shots Fired 77 | . 55 19 . 3 Gun 36 | . 25 8 . 3 Cannon 41 | . 30 11 . . Launcher . | . . . . . Special . | . . . . . Kinetic 36 | . 25 8 . 3 Thermal 41 | . 30 11 . . Explosive . | . . . . . Electromagnetic . | . . . . . Robot Hit Streak 12 | . 12 6 . 5 Robot Miss Streak 4 | . 4 2 . 2 Penetration Max . | . . . . . Secondary Targets . | . . . . . Shots Hit Robots 51 | . 28 20 . 3 Core Hits 25 | . 11 11 . 3 Critical Hits 1 | . . 1 . . Critical Kills . | . . . . . Critical Parts Destroyed 1 | . . 1 . . Melee Attacks 26 | . . 26 . . Impact 26 | . . 26 . . Slashing . | . . . . . Piercing . | . . . . . Sneak Attacks 2 | . . 2 . . Combat Hostiles . | . . . . . Follow-up Attacks . | . . . . . Damage Inflicted 942 | . 393 510 . 39 Guns 274 | . 164 71 . 39 Cannons 407 | . 229 178 . . Explosions . | . . . . . Melee 261 | . . 261 . . Ramming . | . . . . . Kinetic 274 | . 164 71 . 39 Thermal 407 | . 229 178 . . Explosive . | . . . . . Electromagnetic . | . . . . . Impact 261 | . . 261 . . Slashing . | . . . . . Piercing . | . . . . . Highest Corruption . | . . . . . Average Corruption . | . . . . . Corruption Purged . | . . . . . Overload Shots . | . . . . . Overflow Damage 109 | . . 109 . . Projectiles . | . . . . . Explosions . | . . . . . Melee 109 | . . 109 . . Knockbacks 2 | . . 2 . . Impact 2 | . . 2 . . Kinetic . | . . . . . Secondary . | . . . . . Self-Inflicted Damage . | . . . . . Shots . | . . . . . Rammed . | . . . . . Targets Rammed . | . . . . . Kicked . | . . . . . Crushed . | . . . . . Highest Temperature 325 | . 325 60 . . Average Temperature 116 | . 132 24 . . Received Heat Transfer 373 | . 255 78 . 40 Siege Activations . | . . . . . Robots Corrupted . | . . . . . Combat Hostiles . | . . . . . Parts Fried 3 | . . 3 . . Impact Corruptions 5 | . . 5 . . Robots Melted . | . . . . . Combat Hostiles . | . . . . . Parts Melted 3 | . 2 1 . . Heat Transferred 851 | . 481 370 . . Parts Sabotaged . | . . . . . Parts Stolen . | . . . . . Parts Stripped . | . . . . . Power Chain Reactions . | . . . . . Missiles Intercepted . | . . . . . Alert | -11 -10 -10 -10 -9 ------- Run | Scr Mat Min Exi Min Peak Influence 159 | . 159 121 . 75 Initial 61 | . . 61 . . Average 64 | . 68 69 . 70 Maximum Alert Level . | . . . . . Low Security (%) 100 | 100 100 100 . 100 Level 1 . | . . . . . Level 2 . | . . . . . Level 3 . | . . . . . Level 4 . | . . . . . Level 5 . | . . . . . High Security . | . . . . . Max Security . | . . . . . Squads Dispatched . | . . . . . Investigation . | . . . . . Extermination . | . . . . . Reinforcement . | . . . . . Assault . | . . . . . Garrison . | . . . . . Intercept . | . . . . . Construction Impeded . | . . . . . Haulers Reinforced . | . . . . . Stealth | -11 -10 -10 -10 -9 --------- Run | Scr Mat Min Exi Min Distress Signals 1 | . . 1 . . Communications Jammed . | . . . . . Distress Signals . | . . . . . Times Spotted 27 | . 7 7 . 13 Peak Tracking Total 11 | . 2 2 . 11 Tactical Retreats 2 | . . 2 . . Traps | -11 -10 -10 -10 -9 ------- Run | Scr Mat Min Exi Min Traps Triggered 1 | . 1 . . . Indirectly . | . . . . . Trap Hack Attempts . | . . . . . Triggered . | . . . . . Disarmed . | . . . . . Reprogrammed . | . . . . . Reused . | . . . . . Traps Extracted . | . . . . . Installed . | . . . . . Triggered . | . . . . . Machines | -11 -10 -10 -10 -9 ---------- Run | Scr Mat Min Exi Min Machines Disabled . | . . . . . Max in Single Turn . | . . . . . Machines Sabotaged . | . . . . . Garrisons Compromised . | . . . . . Overloaded Fab Kills . | . . . . . Fab Network Shutdowns . | . . . . . Hacking | -11 -10 -10 -10 -9 --------- Run | Scr Mat Min Exi Min Machines Accessed 7 | . 3 . 4 . Terminals 3 | . 3 . . . Fabricators . | . . . . . Repair Stations . | . . . . . Recycling Units . | . . . . . Scanalyzers . | . . . . . Garrison Access . | . . . . . Total Hacks 32 | . 6 . 26 . Successful 29 | . 3 . 26 . Failed 3 | . 3 . . . Catastrophic . | . . . . . Database Lockouts . | . . . . . Manual 7 | . 6 . 1 . Terminals 6 | . 6 . . . Fabricators . | . . . . . Repair Stations . | . . . . . Recycling Units . | . . . . . Scanalyzers . | . . . . . Garrison Access . | . . . . . Terminal Hacks 27 | . 1 . 26 . Record 25 | . . . 25 . Branch Access Points 1 | . 1 . . . EX-Prototype ID Bank 1 | . . . 1 . Fabricator Hacks . | . . . . . Repair Station Hacks . | . . . . . Recycling Unit Hacks . | . . . . . Scanalyzer . | . . . . . Garrison Access Hacks . | . . . . . Unauthorized Hacks 2 | . 2 . . . Terminals 2 | . 2 . . . Track 1 | . 1 . . . Disrupt 1 | . 1 . . . Fabricators . | . . . . . Repair Stations . | . . . . . Recycling Units . | . . . . . Scanalyzers . | . . . . . Garrison Access . | . . . . . Data Cores Recovered . | . . . . . Used . | . . . . . Hacking Detections 2 | . 2 . . . Full Trace Events . | . . . . . Feedback Events . | . . . . . Feedback Blocked . | . . . . . Robot Schematics Acquired . | . . . . . Robots Built . | . . . . . Matter . | . . . . . Time . | . . . . . Total Robot Build Rating . | . . . . . Part Schematics Acquired . | . . . . . Parts Built . | . . . . . Matter . | . . . . . Time . | . . . . . Total Part Build Rating . | . . . . . Parts Repaired . | . . . . . Time . | . . . . . Parts Recycled . | . . . . . Recycled Matter . | . . . . . Retrieved Matter . | . . . . . Retrieved Components . | . . . . . Parts Scanalyzed . | . . . . . Part Schematics Acquired . | . . . . . Parts Damaged . | . . . . . Bothacking | -11 -10 -10 -10 -9 ------------ Run | Scr Mat Min Exi Min Used RIF Installer . | . . . . . Robots Hacked . | . . . . . Non-combat . | . . . . . Combat . | . . . . . Robot Hacks Applied . | . . . . . Relay Couplers Released . | . . . . . Robots Rewired . | . . . . . Allies Hacked . | . . . . . Hacks Repelled . | . . . . . Allies | -11 -10 -10 -10 -9 -------- Run | Scr Mat Min Exi Min Total Allies . | . . . . . Largest Group . | . . . . . Highest-Rated Group . | . . . . . Highest-Rated Ally . | . . . . . Total Orders . | . . . . . Ally Attacks . | . . . . . Total Damage . | . . . . . Kills . | . . . . . Allies Corrupted . | . . . . . Allies Melted . | . . . . . Intel | -11 -10 -10 -10 -9 ------- Run | Scr Mat Min Exi Min Robot Analysis Total . | . . . . . Derelict Logs Recovered . | . . . . . Drone Launches 1 | . . . . 1 Drone Recoveries 1 | . . . . 1 Exploration | -11 -10 -10 -10 -9 ------------- Run | Scr Mat Min Exi Min Turns Passed 1024 | 51 335 378 225 35 Spaces Moved 808 | 44 241 268 243 12 Core 4 | 2 . . . 2 Treads . | . . . . . Legs . | . . . . . Wheels 804 | 42 241 268 243 10 Hover . | . . . . . Flight . | . . . . . Fastest Speed 50 | 50 90 90 90 100 Average Speed 90 | 87 90 90 90 125 Slowest Speed 250 | 90 100 90 90 250 Overloaded Moves . | . . . . . Propulsion Burnouts . | . . . . . Robots Hopped . | . . . . . Cave-ins Triggered . | . . . . . Exploration Rate (%) 33 | 3 49 49 63 2 Regions Visited 4 Branch Regions 3 Pre-discovered Areas 1 | . . . 1 . Known Exits Taken 1 | . 1 . . . Unknown Exits Taken 3 | 1 . 1 1 . Scrap Searched . | . . . . . Spaces Dug 1 | . . 1 . . Terrain Destroyed 1 | . . 1 . . Melee 1 | . . 1 . . Projectile . | . . . . . AOE . | . . . . . Terrain Rammed . | . . . . . Walls Destroyed . | . . . . . Machines Disabled . | . . . . . Actions | -11 -10 -10 -10 -9 --------- Run | Scr Mat Min Exi Min Total 965 | 53 302 333 249 28 Wait 43 | . 6 21 4 12 Move 804 | 43 240 267 242 12 Hop . | . . . . . Pick Up 16 | 4 8 1 3 . Fast Attach 11 | 6 5 . . . Attach 6 | . 3 3 . . Detach 1 | . 1 . . . Swap 5 | . 2 2 . 1 Drop 5 | . 4 1 . . Fire 48 | . 33 12 . 3 Melee 26 | . . 26 . . Ram . | . . . . . Kick . | . . . . . Crush . | . . . . . Escape Stasis . | . . . . . Rewire . | . . . . . Trap . | . . . . . Miscellaneous . | . . . . . Route ------- -11/Scrapyard -10/Materials (discovered 3 exits: [*Mat] / *Min x2) -10/Mines -10/Exiles -9/Mines History --------- Turn | Location | Event 6 | -11/Scrapyard | Discovered new exit (range 16) 52 | -11/Scrapyard | Entered Materials 93 | -10/Materials | Identified exit to Mines 321 | -10/Materials | Build established: Mutant 328 | -10/Materials | Discovered new exit (range 15) 387 | -10/Materials | Entered Mines 406 | -10/Mines | Found a damaged Exp. Sensor Array with a note attached 408 | -10/Mines | Found Prototype Device 445 | -10/Mines | Excavation squad dispatched 445 | -10/Mines | A large section of the Mines collapsed 496 | -10/Mines | Core integrity fell below 50% 695 | -10/Mines | Excavation squad dispatched 761 | -10/Mines | Deemed a non-threat by the Exiles lab entrance 762 | -10/Mines | Discovered new exit (range 5) 765 | -10/Mines | Entered Exiles 792 | -10/Exiles | Met 8R-AWN 804 | -10/Exiles | Met EX-HEX 833 | -10/Exiles | Met EX-BIN 849 | -10/Exiles | Aligned with FarCom system 849 | -10/Exiles | Given EX-Vault access code 886 | -10/Exiles | Opened EX-Vault 894 | -10/Exiles | Found Supersonic Drone Bay 915 | -10/Exiles | Warned to stay clear of 0b10 Research branches 940 | -10/Exiles | Met EX-DEC 944 | -10/Exiles | Learned location of Zion (-7) 983 | -10/Exiles | Discovered new exit (range 10) 990 | -10/Exiles | Left Exiles lab with Supersonic Drone Bay 990 | -10/Exiles | Entered Mines 991 | -9/Mines | Assembled infested the area 992 | -9/Mines | Core integrity fell below 20% 1025 | -9/Mines | Destroyed by as-79800 with Assembled Maul Last Messages --------------- runs. >>Record "MSG004795-02" I just repaired it not long ago, I think someone on the outside is tampering with our system. --AM-PHS 00983_ EXIT=FOUND LOCATION=UNKNOWN GOAL=ESCAPE 00990_ Receiving FarCom transmissions... 00990_ S-10 Pest destroyed. 00991_ ALERT: Infestation in the mines, dispatching Demolisher response squad. 00992_ S-10 Pest destroyed. 00994_ Wheel destroyed. 00994_ S-10 Pest destroyed. 00997_ Acquired 7 matter. 01016_ Trailblazer released from Supersonic Drone Bay. 01016_ Acquired 10 matter. 01018_ Trailblazer retrieved by Supersonic Drone Bay. 01020_ Com. Wheel destroyed. 01020_ Knocked back. Map ----- +----------------------------------------------------+ | ?????????????????????????????????????????????????? | | ?????????????????????????????????????????????????? | | ?????????????????????????????????????????????????? | | ?????????????????????????????????????????????????? | | ?????????????????????????????????????????????????? | | ?????????????????????????????????????????????????? | | ?????????????????????????????????????????????????? | | ?????????????????????????????????????????????????? | | ?????????????????????????????????????????????????? | | ?????????????????????????????????????????????????? | | ?????????????????????????????????????????????????? | | ?????????????????????????????????????????????????? | | ?????????????????????????????????????????????????? | | ?????????????????????????????????????????????????? | | ?????????????????????????????????????????????????? | | ?????????????????????????????????????????????????? | | ?????????????????????????????????????????????????? | | ?????????????????????????????????????????????????? | | ?????????????????????????????????????????????????? | | ?????????????????????????????????????????????????? | | ?????????????????????????????????????????????????? | | ?????????????????????????????????????????????????? | | ?????????????????????????????????????????????????? | | ?????????????????????????????????????????????????? | | ??????????????????????########???????????????????? | | ??????????????????????# @aa ### #???????????????? | | ??????????????????????# aaa aa a #???????????????? | | ??????????????????????# a%a### #???????????????? | | ??????????????????????# =a%#???????????????????? | | ??????????????????????# =%=#???????????????????? | | ??????????????????????# =*#???????????????????? | | ??????????????????????########???????????????????? | | ?????????????????????????????????????????????????? | | ?????????????????????????????????????????????????? | | ?????????????????????????????????????????????????? | | ?????????????????????????????????????????????????? | | ?????????????????????????????????????????????????? | | ?????????????????????????????????????????????????? | | ?????????????????????????????????????????????????? | | ?????????????????????????????????????????????????? | | ?????????????????????????????????????????????????? | | | | | | | | | | | | | | | | | | | +----------------------------------------------------+ Best States ------------- Heat Dissipation 39 Energy Generation 10 Energy Capacity 125 Matter Stores 300 Matter Capacity 300 Sight Range 16 Robot Scan Range 10 Terrain Scan Density 10 Weapon Shielding 33 Evasion (%) 42 Item Schematics ----------------- None Robot Schematics ------------------ None Fabricated ------------ Nothing Alien Tech Used ----------------- None Achievements -------------- None Challenges ------------ None Game ------ Seed ImpulseAccelerationFlail Manual? 0 Play Time 00:22:59 Cumulative 70.0 hours Start 2020.10.29 @ 18:23:07 End 2020.10.29 @ 19:12:12 Sessions 1 Manual Loads 0 Difficulty Rogue Special Mode Halloween2020/ForbiddenLore Game No. 135 Rogue 135 Adventurer 0 Explorer 0 Win Type - Total 0 Types 0/0/0/0/0/0/0/0/0 Lore% 48 Gallery% 59 Achievement% 41 Wizard Run 0 Options --------- ASCII 1 Keyboard 1 Movement Numpad Keybinds 0 Fullscreen 1 Font 18/CogNarrow Map View 76x50 Tactical HUD 1 Map Filters NONE Filters NONE Steam 1 RUN: 76dcb808-157f-4b86-8a14-5ec9bf3cc66f